[Event "44th Chess Olympiad Open 2022"]
[Site "Chennai"]
[Date "2022.07.29"]
[Round "1.4"]
[White "Anton Guijarro, David"]
[Black "Kett, Tim"]
[Result "1-0"]
[WhiteElo "2667"]
[BlackElo "2197"]
[Annotator "TA"]
[PlyCount "76"]
[EventDate "2022.??.??"]
[TimeControl "60"]

{[%evp 12,76,17,21,22,17,22,10,28,14,65,66,71,78,43,38,92,79,84,81,78,94,98,93,
100,76,106,103,92,-46,39,-37,-49,-57,2,-54,0,0,0,0,28,31,55,57,202,0,101,50,
261,252,533,504,587,566,567,580,929,931,1036,1016,1036,1035,1032,1021,1051,953,
900]} 1. c4 {[%emt 0:00:11]} e5 {[%emt 0:00:37]} 2. Nc3 {[%emt 0:00:24]} Bb4 {
[%emt 0:00:28]} 3. Nd5 {[%emt 0:01:00]} Be7 {[%emt 0:00:23]} 4. Nf3 {[%emt 0:
00:00]} Nc6 {[%emt 0:01:31]} 5. d3 {[%emt 0:06:49]} Nf6 {[%emt 0:01:35]} 6. g3
{[%emt 0:01:16]} O-O {[%emt 0:01:38]} 7. Bg2 {[%emt 0:01:28]} d6 {[%emt 0:00:
00] A29: English Opening: Four Knights Variation with 4 g3.} 8. O-O {[%emt 0:
00:00]} Nxd5 {[%emt 0:14:32]} 9. cxd5 {[%emt 0:00:07]} Nb4 {[%emt 0:00:53] The
position is equal.} 10. e4 {[%emt 0:04:45]} f5 {[%emt 0:05:03]} ({Black should
play} 10... c5 $11) 11. a3 $14 {[%emt 0:01:52] [#]} Na6 $146 {[%emt 0:04:12]} (
{Predecessor:} 11... fxe4 12. dxe4 Na6 13. Ne1 c6 14. Nd3 cxd5 15. exd5 Bf5 16.
Be3 Qd7 17. Qb3 Bf6 {0-1 (40) Serper,G (2575)-Smyslov,V (2530) Tilburg 1992})
12. b4 {[%emt 0:01:19] Prevents Nc5. White is more active.} Qe8 {[%emt 0:12:36]
} 13. Bb2 {[%emt 0:09:22]} c5 {[%emt 0:04:46] Against d4} (13... fxe4 $14 14.
dxe4 Bg4) 14. dxc6 $1 $16 {[%emt 0:05:12]} bxc6 {[%emt 0:00:57]} 15. exf5 {
[%emt 0:22:40]} Bxf5 {[%emt 0:01:06]} 16. Nd2 {[%emt 0:05:37]} Nc7 {[%emt 0:00:
00]} 17. Rc1 {[%emt 0:03:10]} Bd7 {[%emt 0:02:38]} 18. Qc2 {[%emt 0:04:39]
[%cal Rg2c6]} Bg5 {[%emt 0:13:46]} 19. Rcd1 {[%emt 0:01:47]} (19. f4 exf4 20.
Rce1 (20. Qc3 $2 Qg6 $19) (20. Ne4 Bh6 $15) 20... Qg6 21. gxf4 (21. Bxc6 Bxc6
22. Qxc6 fxg3 $17) 21... Bxf4 $15) 19... Ne6 {[%emt 0:02:41]} 20. Nb3 {[%emt 0:
00:00]} (20. Nc4 $16 Be7 21. Rde1) 20... Qg6 {[%emt 0:06:05]} (20... Qh5 $1 $15
21. h4 (21. Bxc6 Rac8 $17) 21... Bxh4) 21. Bxc6 {[%emt 0:09:50]} (21. Na5 $14)
21... Rac8 $15 {[%emt 0:00:32]} 22. b5 {[%emt 0:00:04]} Nf4 {[%emt 0:08:08]}
23. f3 {[%emt 0:04:33]} (23. gxf4 $2 Bxf4+ 24. Kh1 Bxh2 $19) (23. Kh1 $1 $11
Qh5 24. f3 Bxc6 25. bxc6) 23... Bd8 {[%emt 0:00:00]} (23... Bh4 $15 24. Kh1
Bxc6 25. bxc6 Bxg3) 24. Kh1 $11 {[%emt 0:01:29]} Nh5 {[%emt 0:01:35]} 25. Rd2 {
[%emt 0:03:29]} Bb6 {[%emt 0:00:55]} 26. d4 {[%emt 0:00:42]} Bf5 {[%emt 0:00:
00]} 27. Qd1 {[%emt 0:00:48] [#] Threatens to win with g4.} Bh3 {[%emt 0:02:01]
} (27... Nxg3+ $2 28. hxg3 Qxg3 29. Rh2 $18) (27... Qh6 $14 28. Rg1 Be6) 28.
Rff2 $2 {[%emt 0:01:37]} (28. dxe5 Bxf1 29. Qxf1 dxe5 $11) (28. Re1 $18) 28...
Qh6 {[%emt 0:00:49]} (28... Nf6 $1 $11) 29. Kg1 {[%emt 0:00:34]} ({Reject} 29.
dxe5 $6 Bxf2 30. Rxf2 dxe5 $11) (29. a4 $16) 29... Bf5 $2 {[%emt 0:00:39]} (
29... Qg5 $14) 30. a4 {[%emt 0:00:44][%cal Ya3a4,Ya4a5] Strongly threatening
a5.} ({Weaker is} 30. dxe5 Bxf2+ 31. Rxf2 dxe5 $16) 30... a6 $2 {[%emt 0:00:18]
[#]} (30... Qg6 {was called for.} 31. a5 (31. dxe5 Nxg3 32. Bd4 Bxd4 $14) 31...
Bc7 32. dxe5 dxe5) 31. a5 $18 {[%emt 0:00:47] White is clearly winning.} Bxd4 {
[%emt 0:00:29]} 32. Bxd4 {[%emt 0:00:45]} exd4 {[%emt 0:00:07]} 33. Nxd4 {
[%emt 0:00:19]} axb5 {[%emt 0:00:16]} 34. Nxf5 {[%emt 0:00:42]} Rxf5 {[%emt 0:
00:13]} 35. Bd7 {[%emt 0:00:22]} Rfc5 {[%emt 0:01:40]} 36. Bxc8 {[%emt 0:00:12]
} Rxc8 {[%emt 0:00:07]} 37. a6 {[%emt 0:00:47]} Qe3 {[%emt 0:00:00]} 38. Kg2 {
[%emt 0:00:27]} Nf6 {[%emt 0:00:00] Weighted Error Value: White=0.31/Black=0.64
} 1-0

[Event "44th Chess Olympiad Open 2022"]
[Site "Chennai"]
[Date "2022.07.29"]
[Round "1.4"]
[White "Blackburn, Jonathan L B"]
[Black "Vallejo Pons, Francisco"]
[Result "0-1"]
[WhiteElo "2176"]
[BlackElo "2702"]
[Annotator "TA"]
[PlyCount "90"]
[EventDate "2022.??.??"]
[TimeControl "60"]

{[%evp 16,90,27,33,27,7,0,0,4,0,-6,-4,4,-1,67,31,82,71,118,70,63,66,117,19,53,
-8,29,43,56,52,49,0,0,-27,0,-28,-27,-52,-36,-64,-6,-85,-97,-89,-77,-132,-20,
-118,-113,-210,-234,-262,-250,-248,-239,-270,-307,-283,-260,-780,-760,-781,
-779,-2012,-872,-5066,-501,-499,-472,-957,-947,-1972,-930,-1974,-1053,-1952,
-1856]} 1. d4 {[%emt 0:00:03]} d6 {[%emt 0:00:33]} 2. Nf3 {[%emt 0:01:00]} g6 {
[%emt 0:00:12]} 3. c4 {[%emt 0:01:11]} Bg7 {[%emt 0:00:22]} 4. Nc3 {[%emt 0:00:
00]} Nf6 {[%emt 0:05:10]} 5. e4 {[%emt 0:03:01]} O-O {[%emt 0:01:12]} 6. Be2 {
[%emt 0:02:57]} Nbd7 {[%emt 0:01:53]} 7. h3 {[%emt 0:06:07]} e5 {[%emt 0:03:18]
} 8. d5 {[%emt 0:02:23]} Nc5 {[%emt 0:07:24]} 9. Qc2 {[%emt 0:03:28]} Nh5 {
[%emt 0:05:58] E93: King's Indian: Classical: Petrosian System with 7...Nbd7.}
10. b4 {[%emt 0:03:28]} Nd7 {[%emt 0:03:52] [#]} 11. Rb1 $146 {[%emt 0:03:24]}
({Predecessor:} 11. Bg5 f6 12. Be3 f5 13. exf5 gxf5 14. Ng5 Ndf6 15. g4 Nf4 16.
gxf5 N6xd5 17. Nxd5 Qxg5 {0-1 (26) Kananub,W (2169)-Laohawirapap,P (2197)
Bangkok 2022}) 11... Nf4 {[%emt 0:06:53] The position is equal.} 12. Bf1 {
[%emt 0:09:48]} a5 {[%emt 0:01:45]} 13. a3 {[%emt 0:00:51]} f5 {[%emt 0:01:35]}
14. g3 {[%emt 0:01:41]} Nh5 {[%emt 0:08:46]} (14... axb4 $11 15. axb4 fxe4 16.
Nxe4 Nf6) 15. Ng5 {[%emt 0:05:59]} Nb8 {[%emt 0:03:31]} (15... Ndf6 $1 $14) 16.
exf5 $1 $16 {[%emt 0:03:56]} gxf5 {[%emt 0:01:05] [#]} ({Black should play} 
16... axb4 17. axb4 gxf5) 17. Be2 {[%emt 0:03:30]} (17. b5 $1 $16) 17... axb4
$14 {[%emt 0:13:47]} 18. axb4 {[%emt 0:10:13]} ({Reject} 18. Bxh5 bxc3 19. Qxc3
Qe7 $15) ({Of course not} 18. Rxb4 Nf6 $11) 18... Qe8 {[%emt 0:03:42] [#]} (
18... Nf6 $14) 19. Nb5 {[%emt 0:05:37]} (19. c5 $1 $16) 19... Na6 $11 {[%emt 0:
00:00]} 20. Bd2 {[%emt 0:07:23]} ({White should try} 20. Ne6 $14 Bxe6 21. dxe6)
20... Qg6 {[%emt 0:07:20]} (20... Nf6 $5 {[%cal Rh7h6]}) 21. c5 {[%emt 0:09:15]
} Bf6 {[%emt 0:05:59]} 22. h4 {[%emt 0:01:41]} Be7 {[%emt 0:02:27]} 23. cxd6 {
[%emt 0:01:15]} (23. Nc3 $14) 23... cxd6 {[%emt 0:05:43]} 24. Qd1 {[%emt 0:00:
00]} Nf6 {[%emt 0:01:08]} 25. h5 {[%emt 0:01:26]} (25. f4 $5 {[%cal Rf4e5]})
25... Qg7 {[%emt 0:03:07]} 26. h6 {[%emt 0:03:00]} Qg6 {[%emt 0:00:04]} 27. Nc3
{[%emt 0:01:21]} Ng4 {[%emt 0:01:29]} ({Better is} 27... Nc7 $15) 28. Nf3 {
[%emt 0:01:32]} (28. Ne6 $1 $11 Bxe6 29. dxe6) 28... Bd7 $17 {[%emt 0:00:57]}
29. Nh4 {[%emt 0:01:10]} Qf7 {[%emt 0:00:04]} 30. f4 {[%emt 0:00:31]} (30. Nf3
$142) 30... Rae8 {[%emt 0:01:40]} (30... exf4 $17 31. Bxf4 Bf6) 31. Ng2 {
[%emt 0:00:27]} (31. fxe5 $1 $11 dxe5 32. d6) 31... Bd8 {[%emt 0:00:49]
Threatens to win with ...Qf6.} 32. Kf1 {[%emt 0:00:57]} (32. fxe5 $17 {was
called for.} dxe5 33. Nh4) 32... Bb6 $19 {[%emt 0:01:52]} 33. Qb3 {[%emt 0:00:
00]} Qg6 {[%emt 0:00:33][%cal Yg4h2] White must now prevent ...Nh2+!} 34. Nh4 {
[%emt 0:01:01]} Qxh6 {[%emt 0:00:40] aiming for ...Be3.} 35. Kg2 {[%emt 0:00:
00][%cal Yh4f5]} Qg7 {[%emt 0:00:26] Hoping for ...Be3.} 36. Bxg4 {[%emt 0:00:
00]} fxg4 {[%emt 0:01:13]} ({Worse is} 36... Qxg4 37. Nf3 Bd8 38. Rbe1 $19) 37.
Rbe1 $2 {[%emt 0:00:24]} (37. Rhf1) 37... exf4 {[%emt 0:00:44] Black is
clearly winning.} 38. Bxf4 {[%emt 0:00:04]} Qd4 {[%emt 0:00:24][%csl Gb6][%cal
Rd4f2]} 39. Nd1 {[%emt 0:00:01] Inhibits Qf2+.} Nxb4 {[%emt 0:00:51]} (39...
Rxe1 $142 40. Rxe1 Rxf4) 40. Rhf1 {[%emt 0:01:31]} Qxd5+ {[%emt 0:00:38]} (
40... Rxe1 $142 41. Rxe1 Rxf4) 41. Qxd5+ {[%emt 0:04:01]} Nxd5 {[%emt 0:01:18]}
42. Bxd6 {[%emt 0:04:51]} (42. Bh6 $142 Rxf1 43. Rxe8+ Bxe8 44. Kxf1) 42...
Rxe1 {[%emt 0:07:00]} 43. Rxf8+ {[%emt 0:01:18]} Kg7 {[%emt 0:00:03]} 44. Nf2 {
[%emt 0:03:42]} Ne3+ {[%emt 0:06:33]} 45. Kh2 {[%emt 0:00:04]} Bc6 {[%emt 0:00:
00] Weighted Error Value: White=0.86/Black=0.42} 0-1

[Event "44th Chess Olympiad Open 2022"]
[Site "Chennai"]
[Date "2022.07.29"]
[Round "1.4"]
[White "Bullen, Alex"]
[Black "Santos Latasa, Jaime"]
[Result "0-1"]
[WhiteElo "2106"]
[BlackElo "2675"]
[Annotator "TA"]
[PlyCount "132"]
[EventDate "2022.??.??"]
[TimeControl "60"]

{[%evp 18,132,25,21,32,22,24,12,33,13,37,18,70,34,49,32,85,80,90,76,91,96,114,
0,0,12,41,0,0,0,0,-70,-83,-104,-106,-104,-90,-97,-20,-156,-168,-151,-30,-47,
-45,-36,-53,-347,-273,-349,-339,-329,-314,-483,-474,-652,-636,-652,-307,-392,
-362,-385,-372,-385,-380,-367,-297,-814,-383,-384,-375,-362,-359,-408,-397,
-387,-324,-324,-324,-354,-324,-374,-374,-459,-374,-397,-397,-666,-584,-6123,
-5410,-29957,-29960,-29959,-29961,-29961,-29963,-29960,-29963,-29961,-29963,
-29959,-29960,-29938,-12557,-5444,-1987,-29970,-29971,-29971,-29972,-29968,
-29970,-29983,-29984,-29989,-29990]} 1. d4 {[%emt 0:00:03]} Nf6 {[%emt 0:00:08]
} 2. Nf3 {[%emt 0:00:08]} d5 {[%emt 0:00:06]} 3. c4 {[%emt 0:00:08]} e6 {
[%emt 0:00:05]} 4. g3 {[%emt 0:00:06]} Bb4+ {[%emt 0:00:14]} 5. Bd2 {[%emt 0:
00:00]} Be7 {[%emt 0:00:06]} 6. Bg2 {[%emt 0:00:09]} Nbd7 {[%emt 0:00:09]} 7.
O-O {[%emt 0:00:12]} c6 {[%emt 0:00:09]} 8. Qc2 {[%emt 0:00:07]} O-O {[%emt 0:
00:00]} 9. Bf4 {[%emt 0:00:07]} Ne4 {[%emt 0:00:41]} 10. Nc3 {[%emt 0:04:30]}
g5 {[%emt 0:00:37] 10...g5 is better than 10...f5. E08: Closed Catalan: Main
Line: 7 Qc2.} 11. Bc1 {[%emt 0:00:37]} f5 {[%emt 0:00:41]} 12. b3 {[%emt 0:00:
00]} Bf6 {[%emt 0:12:46] The position is equal.} 13. e3 {[%emt 0:04:58] [#]} h5
$146 {[%emt 0:04:55]} ({Predecessor:} 13... g4 14. Ne1 h5 15. Nd3 Kg7 16. Ne2
Rh8 17. Bb2 h4 18. Nef4 Qe8 19. Rad1 hxg3 20. fxg3 {1-0 (39) Dziuba,M (2580)
-Risting,E (2305) Oslo 2018}) 14. Bb2 {[%emt 0:02:44]} Bg7 {[%emt 0:07:33]} (
14... g4 $11) 15. Rad1 {[%emt 0:08:26]} Qe7 {[%emt 0:06:47]} 16. h4 {[%emt 0:
00:00]} Bf6 {[%emt 0:04:07]} (16... g4 $14) 17. hxg5 {[%emt 0:06:20]} Bxg5 {
[%emt 0:00:16]} 18. Ne2 {[%emt 0:08:49]} h4 {[%emt 0:00:32]} 19. gxh4 {[%emt 0:
00:00]} Bh6 {[%emt 0:02:33]} 20. Ng5 {[%emt 0:02:09]} ({White should try} 20.
Nf4 $16) 20... Nxg5 {[%emt 0:02:19]} 21. hxg5 {[%emt 0:00:09]} Bxg5 {[%emt 0:
00:00]} 22. Nf4 {[%emt 0:08:22] Strongly threatening Ng6.} (22. Bf3 $5 {
[%cal Rg1g2]}) 22... Rf7 {[%emt 0:04:34][%cal Yf8f7,Yf7g7,Yg7g4]} 23. Rfe1 {
[%emt 0:07:00]} Rg7 {[%emt 0:07:05]} 24. Qe2 {[%emt 0:07:33]} (24. Nd3 $11)
24... Nf6 $15 {[%emt 0:00:00]} 25. Nh5 {[%emt 0:01:24]} Nxh5 {[%emt 0:00:00]}
26. Qxh5 {[%emt 0:00:04]} Bd7 $1 {[%emt 0:05:01]} 27. Kf1 {[%emt 0:07:14]} Bh4
{[%emt 0:03:57]} ({Better is} 27... Rf8 $17) 28. Rd2 {[%emt 0:03:40]} (28. Ke2
$11 {keeps the balance.}) 28... Rg4 $17 {[%emt 0:08:22] ...Rf8 is the strong
threat.} 29. Bf3 {[%emt 0:03:23] [#]} Kg7 $1 {[%emt 0:00:00]} 30. Bxg4 $11 {
[%emt 0:02:31]} Be8 $1 {[%emt 0:00:26]} 31. Ba3 $1 {[%emt 0:00:16]} Qf6 {
[%emt 0:00:08]} 32. Bf8+ $2 {[%emt 0:02:15] White does not recover from this.}
Kxf8 $19 {[%emt 0:00:00]} 33. Qh7 {[%emt 0:00:05]} fxg4 {[%emt 0:00:00]} 34.
Qxb7 {[%emt 0:01:12]} Rd8 {[%emt 0:00:00][%cal Ya8d8,Yd8d7,Yd7f7]} 35. Kg1 {
[%emt 0:02:25]} (35. cxd5 cxd5 36. Kg1 Bg6) (35. Qxa7 $142 g3 36. Qc7) 35...
Bg6 {[%emt 0:00:00]} 36. cxd5 {[%emt 0:03:24]} exd5 {[%emt 0:00:00]} 37. Rc1 {
[%emt 0:00:34]} Be8 {[%emt 0:00:34] This bishop pair is nice.} (37... Be4 $142
{( -> ...Qf3)} 38. Qc7 (38. Qxc6 $2 Qf3 $19) 38... Kg8) 38. Qxa7 {[%emt 0:01:
02]} Rd7 {[%emt 0:01:35] Against Qc7} 39. Qb8 {[%emt 0:00:12]} ({And not} 39.
Qc5+ Re7 40. Qb6 Qf3 $19) 39... Rf7 {[%emt 0:00:20][%cal Rh4f2]} 40. Qh2 {
[%emt 0:02:08]} g3 {[%emt 0:01:59]} 41. fxg3 {[%emt 0:31:19]} Bxg3 {[%emt 0:31:
43]} 42. Qg2 {[%emt 0:00:00] [#]} (42. Qxg3 Rg7 43. Qg2 Rxg2+ 44. Rxg2) 42...
Qh6 $1 {[%emt 0:00:00]} 43. Qxg3 {[%emt 0:00:00]} Rg7 {[%emt 0:00:00]} 44. Rf1+
{[%emt 0:00:00]} ({But not} 44. Rf2+ Ke7 45. Qxg7+ Qxg7+ 46. Rg2 Qh6 $19) 44...
Ke7 {[%emt 0:00:00] Chess con chili.} 45. Qxg7+ {[%emt 0:00:00]} Qxg7+ {
[%emt 0:00:00]} 46. Rg2 {[%emt 0:00:00]} Qh6 {[%emt 0:00:00]} 47. Rf4 {[%emt 0:
00:00]} Bg6 {[%emt 0:00:00]} 48. Rgg4 {[%emt 0:00:00]} Bd3 {[%emt 0:00:00]
White must now prevent ...Qh3.} 49. Kg2 {[%emt 0:00:00] Prevents Qh3+.} Kd6 {
[%emt 0:00:00]} 50. b4 {[%emt 0:00:00]} Bc2 {[%emt 0:00:00]} 51. Kf2 {[%emt 0:
00:00]} Kc7 {[%emt 0:00:00]} 52. Rg1 $2 {[%emt 0:00:00]} (52. Rh4 Qg6 53. Rh8)
52... Kb6 {[%emt 0:00:00]} 53. Rc1 {[%emt 0:00:00]} Qh2+ {[%emt 0:00:00]} 54.
Ke1 {[%emt 0:00:00]} Bd3 {[%emt 0:00:00][%csl Gd3][%cal Rh2e2]} 55. Rf2 {
[%emt 0:00:00]} Qg1+ {[%emt 0:00:00]} 56. Kd2 {[%emt 0:00:00]} Qxf2+ {[%emt 0:
00:00]} 57. Kxd3 {[%emt 0:00:00]} Qxa2 {[%emt 0:00:00] KQ-KR} 58. Rc3 {[%emt 0:
00:00]} Qb2 {[%emt 0:00:00]} 59. Rc2 {[%emt 0:00:57]} Qb3+ {[%emt 0:00:00]} 60.
Kd2 {[%emt 0:00:25]} Qxb4+ {[%emt 0:00:00]} 61. Kd3 {[%emt 0:00:38]} Kc7 {
[%emt 0:00:00]} 62. Rc5 {[%emt 0:00:34]} Qe1 {[%emt 0:00:00] Black mates.} 63.
Rc2 {[%emt 0:00:35]} Kd6 {[%emt 0:00:00]} 64. Rh2 {[%emt 0:02:25]} Qd1+ {
[%emt 0:00:00]} 65. Kc3 {[%emt 0:00:07]} Qc1+ {[%emt 0:00:00]} 66. Kd3 {
[%emt 0:00:18]} Qa3+ {[%emt 0:00:00] Weighted Error Value: White=0.82/Black=0.
29 (precise)} 0-1

[Event "44th Chess Olympiad Open 2022"]
[Site "Chennai"]
[Date "2022.07.29"]
[Round "1.5"]
[White "Piorun, Kacper"]
[Black "Altorky, Amer"]
[Result "1-0"]
[WhiteElo "2636"]
[BlackElo "2040"]
[Annotator "TA"]
[PlyCount "79"]
[EventDate "2022.??.??"]
[TimeControl "60"]

{[%evp 9,79,35,59,37,37,46,49,41,52,49,48,55,75,50,42,42,44,34,53,36,49,40,43,
45,53,51,47,42,51,31,85,43,83,73,88,0,112,117,158,159,158,149,175,157,197,172,
184,197,484,487,441,436,496,440,527,489,522,525,515,528,743,530,514,502,522,
533,844,829,1100,1082,2033,1901]} 1. e4 {[%emt 0:00:04]} d5 {[%emt 0:00:34]} 2.
exd5 {[%emt 0:00:06]} Qxd5 {[%emt 0:00:05]} 3. Nc3 {[%emt 0:00:09]} Qd6 {
[%emt 0:00:20]} 4. d4 {[%emt 0:00:20]} Nf6 {[%emt 0:01:25]} 5. Nf3 {[%emt 0:00:
00]} c6 {[%emt 0:02:17]} 6. g3 {[%emt 0:00:15] B01: Scandinavian Defence.} Bg4
{[%emt 0:01:43]} 7. Bg2 {[%emt 0:00:09]} e6 {[%emt 0:00:30]} 8. O-O {[%emt 0:
00:00] White is slightly better.} Be7 {[%emt 0:00:46]} 9. Bf4 $1 {[%emt 0:00:
00] 9.Bf4 scores better than 9.h3.} Qd8 {[%emt 0:00:21]} 10. h3 {[%emt 0:00:10]
} Bh5 {[%emt 0:01:13]} 11. Ne2 $5 {[%emt 0:00:40] Leaves trodden paths.} (11.
g4 $5 {[%cal Rg4h5]} Bg6 12. Bg3 $14) 11... Nbd7 {[%emt 0:03:22]} 12. c4 {
[%emt 0:01:40]} O-O {[%emt 0:01:00]} 13. Nc3 {[%emt 0:03:30] [#]} h6 $146 {
[%emt 0:09:37]} ({Predecessor:} 13... a6 14. Re1 Re8 15. Qd2 Nf8 16. g4 Bg6 17.
Ne5 N8d7 18. Rad1 Nb6 19. a3 Qc8 {0-1 (42) Heredia Serrano,C (2116)-Popilski,G
(2499) Brownsville 2017}) 14. Qe2 {[%emt 0:01:46]} Re8 {[%emt 0:01:14]} 15.
Rad1 {[%emt 0:06:24]} Qa5 {[%emt 0:03:33]} 16. g4 {[%emt 0:04:11]} Bg6 {
[%emt 0:06:26]} 17. a3 {[%emt 0:07:17]} Rad8 {[%emt 0:02:23]} 18. Rfe1 {
[%emt 0:06:48]} Bh7 {[%emt 0:10:12]} 19. Bg3 {[%emt 0:13:03]} Bf8 {[%emt 0:00:
00]} (19... Qa6 $14) 20. Qe3 {[%emt 0:09:49]} Rc8 {[%emt 0:10:45]} 21. Ne5 {
[%emt 0:04:23]} Rcd8 {[%emt 0:11:03]} 22. Nf3 {[%emt 0:02:27] White is more
active.} ({White should play} 22. f4 $16) 22... c5 {[%emt 0:00:00] [#]} (22...
Rc8 $1 $11) 23. Nb5 $1 $16 {[%emt 0:08:05] Black is now going downhill.} Rc8 {
[%emt 0:00:00] Inhibits Bc7.} 24. dxc5 {[%emt 0:03:04]} Bxc5 {[%emt 0:00:00]}
25. Qe2 $36 {[%emt 0:01:33] And now b4 would win. Keeping Black busy.} Qa4 {
[%emt 0:02:24]} 26. b4 {[%emt 0:03:59]} Be7 {[%emt 0:00:43]} 27. g5 {[%emt 0:
01:33]} hxg5 {[%emt 0:05:38]} 28. Nxg5 {[%emt 0:00:02]} Qc2 $2 {[%emt 0:03:59]}
(28... a6 {was called for.}) 29. Nxh7 $18 {[%emt 0:02:03] White is clearly
winning.} Qxh7 {[%emt 0:00:08]} 30. Bxb7 {[%emt 0:00:53]} Nb6 {[%emt 0:03:22]}
31. Bxc8 {[%emt 0:03:19]} Rxc8 {[%emt 0:00:25]} 32. c5 {[%emt 0:02:11]} Nbd5 {
[%emt 0:00:11]} 33. Nxa7 {[%emt 0:00:22][%cal Yb5a7,Ya7c6,Yc6e5]} Ra8 {[%emt 0:
01:07]} 34. Nc6 {[%emt 0:00:06]} Qxh3 {[%emt 0:00:17]} 35. Qf3 {[%emt 0:00:56]}
Bf8 {[%emt 0:01:17]} 36. Rd4 {[%emt 0:00:00]} g5 {[%emt 0:02:46]} 37. Ne5 {
[%emt 0:00:52][%cal Yd4d5] [#] Threatens to win with Rxd5!} Bg7 {[%emt 0:00:54]
} 38. c6 {[%emt 0:01:48]} Ra7 {[%emt 0:00:00]} 39. b5 {[%emt 0:00:43]} Nf4 {
[%emt 0:01:12]} 40. Bxf4 {[%emt 0:00:15] Weighted Error Value: White=0.17 
(very precise) /Black=0.33} 1-0